Workbook

Sheet Лист1
A1: Школа | C1: МБОУ "Муслюмкинская СОШ" | F1: Утвердил: | G1: должность | H1: директор
A2: Типовое примерное меню приготавливаемых блюд | G2: фамилия | H2: Шишкова Любовь Васильевна
A3: Возрастная категория | E3: 7-11 лет | G3: дата | H3: 16 | I3: 10 | J3: 2023
H4: день | I4: месяц | J4: год
A5: Неделя | B5: День недели | C5: Прием пищи | D5: Раздел меню | E5: Блюда | F5: Вес блюда, г | G5: Белки | H5: Жиры | I5: Углеводы | J5: Калорийность | K5: № рецептуры | L5: Цена
A6: 1 | B6: 1 | C6: Завтрак | D6: гор.блюдо | E6: =[1]Лист1!E6 -> Каша гречневая рассыпчатая с маслом | F6: =[1]Лист1!F6 -> 150 | G6: =[1]Лист1!G6 -> 7.11 | H6: =[1]Лист1!H6 -> 3.36 | I6: =[1]Лист1!I6 -> 35.12 | J6: =[1]Лист1!J6 -> 171.5 | K6: =[1]Лист1!K6 -> 379 | L6: =[1]Лист1!L6 -> 11.27
D7: гор.блюдо | E7: =[1]Лист1!E7 -> Мясо тушеное | F7: =[1]Лист1!F7 -> 100 | G7: =[1]Лист1!G7 -> 10.5 | H7: =[1]Лист1!H7 -> 11.03 | I7: =[1]Лист1!I7 -> 3.184 | J7: =[1]Лист1!J7 -> 196 | K7: =[1]Лист1!K7 -> 256 | L7: =[1]Лист1!L7 -> 46.31
D8: хлеб | E8: =[1]Лист1!E8 -> Хлеб дарницкий | F8: =[1]Лист1!F8 -> 20 | G8: =[1]Лист1!G8 -> 1.3 | H8: =[1]Лист1!H8 -> 0.2 | I8: =[1]Лист1!I8 -> 7 | J8: =[1]Лист1!J8 -> 35 | K8: =[1]Лист1!K8 -> 376 | L8: =[1]Лист1!L8 -> 2.03
D9: хлеб | E9: =[1]Лист1!E9 -> Хлеб пшеничный | F9: =[1]Лист1!F9 -> 30 | G9: =[1]Лист1!G9 -> 2.8 | H9: =[1]Лист1!H9 -> 0.24 | I9: =[1]Лист1!I9 -> 14.76 | J9: =[1]Лист1!J9 -> 71 | K9: =[1]Лист1!K9 -> 376 | L9: =[1]Лист1!L9 -> 1.21
D10: гор напиток | E10: =[1]Лист1!E10 -> Чай с сахаром | F10: =[1]Лист1!F10 -> 200 | G10: =[1]Лист1!G10 -> 0.53 | H10: =[1]Лист1!H10 -> 0 | I10: =[1]Лист1!I10 -> 9.47 | J10: =[1]Лист1!J10 -> 40 | K10: =[1]Лист1!K10 -> 379 | L10: =[1]Лист1!L10 -> 1.53
D11: фрукты | E11: Яблоко | F11: =[1]Лист1!F11 -> 100 | G11: =[1]Лист1!G11 -> 0.6 | H11: =[1]Лист1!H11 -> 0.6 | I11: =[1]Лист1!I11 -> 14.7 | J11: =[1]Лист1!J11 -> 70.3 | K11: =[1]Лист1!K11 -> 388 | L11: =[1]Лист1!L11 -> 10
E12: =[1]Лист1!E12 -> 0 | F12: =[1]Лист1!F12 -> 0 | G12: =[1]Лист1!G12 -> 0 | H12: =[1]Лист1!H12 -> 0 | I12: =[1]Лист1!I12 -> 0 | J12: =[1]Лист1!J12 -> 0 | K12: =[1]Лист1!K12 -> 0 | L12: =[1]Лист1!L12 -> 0
D13: итого | F13: =SUM(F6:F12) -> 600 | G13: =SUM(G6:G12) -> 22.84 | H13: 15.43 | I13: 84.234 | J13: 583.8 | L13: =SUM(L6:L12) -> 72.35
A14: =A6 -> 1 | B14: =B6 -> 1 | C14: Обед | D14: закуска
D15: 1 блюдо
D16: 2 блюдо
D17: гарнир
D18: напиток
D19: хлеб бел.
D20: хлеб черн.
D23: итого | F23: =SUM(F14:F22) -> 0 | G23: =SUM(G14:G22) -> 0 | H23: 0 | I23: 0 | J23: 0 | L23: =SUM(L14:L22) -> 0
A24: =A6 -> 1 | B24: =B6 -> 1 | C24: Итого за день: | F24: =F13+F23 -> 600 | G24: =G13+G23 -> 22.84 | H24: 15.43 | I24: 84.234 | J24: 583.8 | L24: =L13+L23 -> 72.35
A25: 1 | B25: 2 | C25: Завтрак | D25: гор.блюдо | E25: =[1]Лист1!E25 -> Плов из говядины | F25: =[1]Лист1!F25 -> 200 | G25: =[1]Лист1!G25 -> 14.14 | H25: =[1]Лист1!H25 -> 11.7 | I25: =[1]Лист1!I25 -> 13.97 | J25: =[1]Лист1!J25 -> 214.34 | K25: =[1]Лист1!K25 -> 265 | L25: =[1]Лист1!L25 -> 48.49
D26: хлеб | E26: =[1]Лист1!E26 -> Хлеб дарницкий | F26: =[1]Лист1!F26 -> 20 | G26: =[1]Лист1!G26 -> 1.3 | H26: =[1]Лист1!H26 -> 0.2 | I26: =[1]Лист1!I26 -> 7 | J26: =[1]Лист1!J26 -> 35 | K26: =[1]Лист1!K26 -> 376 | L26: =[1]Лист1!L26 -> 2.03
D27: хлеб | E27: =[1]Лист1!E27 -> Хлеб пшеничный | F27: =[1]Лист1!F27 -> 30 | G27: =[1]Лист1!G27 -> 2.8 | H27: =[1]Лист1!H27 -> 0.24 | I27: =[1]Лист1!I27 -> 14.76 | J27: =[1]Лист1!J27 -> 71 | K27: =[1]Лист1!K27 -> 376 | L27: =[1]Лист1!L27 -> 1.21
D28: гор напиток | E28: =[1]Лист1!E28 -> Какао с молоком | F28: =[1]Лист1!F28 -> 200 | G28: =[1]Лист1!G28 -> 4.08 | H28: =[1]Лист1!H28 -> 3.54 | I28: =[1]Лист1!I28 -> 17.58 | J28: =[1]Лист1!J28 -> 118.6 | K28: =[1]Лист1!K28 -> 382 | L28: =[1]Лист1!L28 -> 9.63
D29: салат | E29: =[1]Лист1!E29 -> Салат из свеклы отварной | F29: =[1]Лист1!F29 -> 60 | G29: =[1]Лист1!G29 -> 0.86 | H29: =[1]Лист1!H29 -> 3.65 | I29: =[1]Лист1!I29 -> 5.02 | J29: =[1]Лист1!J29 -> 56.34 | K29: =[1]Лист1!K29 -> 52 | L29: =[1]Лист1!L29 -> 2.83
E30: =[1]Лист1!E30 -> 0 | F30: =[1]Лист1!F30 -> 0 | G30: =[1]Лист1!G30 -> 0 | H30: =[1]Лист1!H30 -> 0 | I30: =[1]Лист1!I30 -> 0 | J30: =[1]Лист1!J30 -> 0 | K30: =[1]Лист1!K30 -> 0 | L30: =[1]Лист1!L30 -> 0
E31: =[1]Лист1!E31 -> 0 | F31: =[1]Лист1!F31 -> 0 | G31: =[1]Лист1!G31 -> 0 | H31: =[1]Лист1!H31 -> 0 | I31: =[1]Лист1!I31 -> 0 | J31: =[1]Лист1!J31 -> 0 | K31: =[1]Лист1!K31 -> 0 | L31: =[1]Лист1!L31 -> 0
D32: итого | F32: =SUM(F25:F31) -> 510 | G32: =SUM(G25:G31) -> 23.18 | H32: =SUM(H25:H31) -> 19.33 | I32: =SUM(I25:I31) -> 58.33 | J32: =SUM(J25:J31) -> 495.28 | L32: 64.19
A33: =A25 -> 1 | B33: =B25 -> 2 | C33: Обед | D33: закуска
D34: 1 блюдо
D35: 2 блюдо
D36: гарнир
D37: напиток
D38: хлеб бел.
D39: хлеб черн.
D42: итого | F42: =SUM(F33:F41) -> 0 | G42: =SUM(G33:G41) -> 0 | H42: =SUM(H33:H41) -> 0 | I42: =SUM(I33:I41) -> 0 | J42: =SUM(J33:J41) -> 0 | L42: 0
A43: =A25 -> 1 | B43: =B25 -> 2 | C43: Итого за день: | F43: =F32+F42 -> 510 | G43: =G32+G42 -> 23.18 | H43: =H32+H42 -> 19.33 | I43: =I32+I42 -> 58.33 | J43: =J32+J42 -> 495.28 | L43: 64.19
A44: 1 | B44: 3 | C44: Завтрак | D44: =[1]Лист1!D44 -> гор.блюдо | E44: =[1]Лист1!E44 -> Фрикадельки в соусе | F44: =[1]Лист1!F44 -> 70/50 | G44: =[1]Лист1!G44 -> 10.6 | H44: =[1]Лист1!H44 -> 9.85 | I44: =[1]Лист1!I44 -> 4.065 | J44: =[1]Лист1!J44 -> 223 | K44: =[1]Лист1!K44 -> 105 | L44: =[1]Лист1!L44 -> 34.23
D45: =[1]Лист1!D45 -> гор.блюдо | E45: =[1]Лист1!E45 -> Макаронные изделия отварные | F45: =[1]Лист1!F45 -> 150 | G45: =[1]Лист1!G45 -> 5.46 | H45: =[1]Лист1!H45 -> 5.79 | I45: =[1]Лист1!I45 -> 30.45 | J45: =[1]Лист1!J45 -> 195.7 | K45: =[1]Лист1!K45 -> 202 | L45: =[1]Лист1!L45 -> 15.8
D46: =[1]Лист1!D46 -> хлеб | E46: =[1]Лист1!E46 -> Хлеб дарницкий | F46: =[1]Лист1!F46 -> 20 | G46: =[1]Лист1!G46 -> 1.3 | H46: =[1]Лист1!H46 -> 0.2 | I46: =[1]Лист1!I46 -> 7 | J46: =[1]Лист1!J46 -> 35 | K46: =[1]Лист1!K46 -> 376 | L46: =[1]Лист1!L46 -> 2.03
D47: =[1]Лист1!D47 -> хлеб | E47: =[1]Лист1!E47 -> Хлеб пшеничный | F47: =[1]Лист1!F47 -> 30 | G47: =[1]Лист1!G47 -> 2.8 | H47: =[1]Лист1!H47 -> 0.24 | I47: =[1]Лист1!I47 -> 14.76 | J47: =[1]Лист1!J47 -> 71 | K47: =[1]Лист1!K47 -> 376 | L47: =[1]Лист1!L47 -> 1.21
D48: =[1]Лист1!D48 -> гор.напиток | E48: =[1]Лист1!E48 -> Чай с лимоном | F48: =[1]Лист1!F48 -> 200 | G48: =[1]Лист1!G48 -> 0.13 | H48: =[1]Лист1!H48 -> 0.02 | I48: =[1]Лист1!I48 -> 15.2 | J48: =[1]Лист1!J48 -> 62 | K48: =[1]Лист1!K48 -> 377 | L48: =[1]Лист1!L48 -> 2.72
D49: =[1]Лист1!D49 -> фрукты | E49: Яблоко | F49: =[1]Лист1!F49 -> 100 | G49: =[1]Лист1!G49 -> 0.6 | H49: =[1]Лист1!H49 -> 0.6 | I49: =[1]Лист1!I49 -> 14.7 | J49: =[1]Лист1!J49 -> 70.3 | K49: =[1]Лист1!K49 -> 388 | L49: =[1]Лист1!L49 -> 10
D50: =[1]Лист1!D50 -> 0 | E50: =[1]Лист1!E50 -> 0 | F50: =[1]Лист1!F50 -> 0 | G50: =[1]Лист1!G50 -> 0 | H50: =[1]Лист1!H50 -> 0 | I50: =[1]Лист1!I50 -> 0 | J50: =[1]Лист1!J50 -> 0 | K50: =[1]Лист1!K50 -> 0 | L50: =[1]Лист1!L50 -> 0
D51: =[1]Лист1!D51 -> итого | E51: =[1]Лист1!E51 -> 0 | F51: =[1]Лист1!F51 -> 500 | G51: =[1]Лист1!G51 -> 20.89 | H51: =[1]Лист1!H51 -> 16.7 | I51: =[1]Лист1!I51 -> 86.175 | J51: =[1]Лист1!J51 -> 657 | K51: =[1]Лист1!K51 -> 0 | L51: =[1]Лист1!L51 -> 65.99
A52: =A44 -> 1 | B52: =B44 -> 3 | C52: Обед | D52: закуска
D53: 1 блюдо
D54: 2 блюдо
D55: гарнир
D56: напиток
D57: хлеб бел.
D58: хлеб черн.
D61: итого | F61: =SUM(F52:F60) -> 0 | G61: =SUM(G52:G60) -> 0 | H61: =SUM(H52:H60) -> 0 | I61: =SUM(I52:I60) -> 0 | J61: =SUM(J52:J60) -> 0 | L61: 0
A62: =A44 -> 1 | B62: =B44 -> 3 | C62: Итого за день: | F62: =F51+F61 -> 500 | G62: =G51+G61 -> 20.89 | H62: =H51+H61 -> 16.7 | I62: =I51+I61 -> 86.175 | J62: =J51+J61 -> 657 | L62: 65.99
A63: 1 | B63: 4 | C63: Завтрак | D63: =[1]Лист1!D63 -> гор.блюдо | E63: =[1]Лист1!E63 -> Пюре картофельное | F63: =[1]Лист1!F63 -> 150 | G63: =[1]Лист1!G63 -> 3.26 | H63: =[1]Лист1!H63 -> 9.62 | I63: =[1]Лист1!I63 -> 18.89 | J63: =[1]Лист1!J63 -> 181.5 | K63: =[1]Лист1!K63 -> 128 | L63: =[1]Лист1!L63 -> 21.88
D64: =[1]Лист1!D64 -> гор.блюдо | E64: =[1]Лист1!E64 -> Котлеты рыбные | F64: =[1]Лист1!F64 -> 100 | G64: =[1]Лист1!G64 -> 8.062 | H64: =[1]Лист1!H64 -> 5.3 | I64: =[1]Лист1!I64 -> 9.362 | J64: =[1]Лист1!J64 -> 145 | K64: =[1]Лист1!K64 -> 234 | L64: =[1]Лист1!L64 -> 34.71
D65: =[1]Лист1!D65 -> хлеб | E65: =[1]Лист1!E65 -> Хлеб дарницкий | F65: =[1]Лист1!F65 -> 20 | G65: =[1]Лист1!G65 -> 1.3 | H65: =[1]Лист1!H65 -> 0.2 | I65: =[1]Лист1!I65 -> 7 | J65: =[1]Лист1!J65 -> 35 | K65: =[1]Лист1!K65 -> 376 | L65: =[1]Лист1!L65 -> 2.03
D66: =[1]Лист1!D66 -> хлеб | E66: =[1]Лист1!E66 -> Хлеб пшеничный | F66: =[1]Лист1!F66 -> 30 | G66: =[1]Лист1!G66 -> 2.8 | H66: =[1]Лист1!H66 -> 0.24 | I66: =[1]Лист1!I66 -> 14.76 | J66: =[1]Лист1!J66 -> 71 | K66: =[1]Лист1!K66 -> 376 | L66: =[1]Лист1!L66 -> 1.21
D67: =[1]Лист1!D67 -> гор.напиток | E67: =[1]Лист1!E67 -> Чай с сахаром | F67: =[1]Лист1!F67 -> 200 | G67: =[1]Лист1!G67 -> 0.53 | H67: =[1]Лист1!H67 -> 0 | I67: =[1]Лист1!I67 -> 9.47 | J67: =[1]Лист1!J67 -> 40 | K67: =[1]Лист1!K67 -> 379 | L67: =[1]Лист1!L67 -> 1.53
D68: =[1]Лист1!D68 -> закуска | E68: =[1]Лист1!E68 -> Салат из свеклы отварной | F68: =[1]Лист1!F68 -> 60 | G68: =[1]Лист1!G68 -> 0.86 | H68: =[1]Лист1!H68 -> 3.65 | I68: =[1]Лист1!I68 -> 5.02 | J68: =[1]Лист1!J68 -> 56.34 | K68: =[1]Лист1!K68 -> 52 | L68: =[1]Лист1!L68 -> 2.83
D69: =[1]Лист1!D69 -> 0 | E69: =[1]Лист1!E69 -> 0 | F69: =[1]Лист1!F69 -> 0 | G69: =[1]Лист1!G69 -> 0 | H69: =[1]Лист1!H69 -> 0 | I69: =[1]Лист1!I69 -> 0 | J69: =[1]Лист1!J69 -> 0 | K69: =[1]Лист1!K69 -> 0 | L69: =[1]Лист1!L69 -> 0
D70: =[1]Лист1!D70 -> итого | E70: =[1]Лист1!E70 -> 0 | F70: =[1]Лист1!F70 -> 560 | G70: =[1]Лист1!G70 -> 16.812 | H70: =[1]Лист1!H70 -> 19.01 | I70: =[1]Лист1!I70 -> 64.502 | J70: =[1]Лист1!J70 -> 528.84 | K70: =[1]Лист1!K70 -> 0 | L70: =[1]Лист1!L70 -> 64.19
A71: =A63 -> 1 | B71: =B63 -> 4 | C71: Обед | D71: закуска
D72: 1 блюдо
D73: 2 блюдо
D74: гарнир
D75: напиток
D76: хлеб бел.
D77: хлеб черн.
D80: итого | F80: =SUM(F71:F79) -> 0 | G80: =SUM(G71:G79) -> 0 | H80: =SUM(H71:H79) -> 0 | I80: =SUM(I71:I79) -> 0 | J80: =SUM(J71:J79) -> 0 | L80: 0
A81: =A63 -> 1 | B81: =B63 -> 4 | C81: Итого за день: | F81: =F70+F80 -> 560 | G81: =G70+G80 -> 16.812 | H81: =H70+H80 -> 19.01 | I81: =I70+I80 -> 64.502 | J81: =J70+J80 -> 528.84 | L81: 64.19
A82: 1 | B82: 5 | C82: Завтрак | D82: =[1]Лист1!D82 -> гор.блюдо | E82: =[1]Лист1!E82 -> Рис отварной | F82: =[1]Лист1!F82 -> 150 | G82: =[1]Лист1!G82 -> 3.65 | H82: =[1]Лист1!H82 -> 5.37 | I82: =[1]Лист1!I82 -> 36.68 | J82: =[1]Лист1!J82 -> 209.7 | K82: =[1]Лист1!K82 -> 304 | L82: =[1]Лист1!L82 -> 8.96
D83: =[1]Лист1!D83 -> гор.блюдо | E83: =[1]Лист1!E83 -> Котлеты из птицы | F83: =[1]Лист1!F83 -> 100 | G83: =[1]Лист1!G83 -> 12.8 | H83: =[1]Лист1!H83 -> 6.712 | I83: =[1]Лист1!I83 -> 24.4 | J83: =[1]Лист1!J83 -> 199 | K83: =[1]Лист1!K83 -> 295 | L83: =[1]Лист1!L83 -> 33.16
D84: =[1]Лист1!D84 -> хлеб | E84: =[1]Лист1!E84 -> Хлеб дарницкий | F84: =[1]Лист1!F84 -> 20 | G84: =[1]Лист1!G84 -> 1.3 | H84: =[1]Лист1!H84 -> 0.2 | I84: =[1]Лист1!I84 -> 7 | J84: =[1]Лист1!J84 -> 35 | K84: =[1]Лист1!K84 -> 376 | L84: =[1]Лист1!L84 -> 2.03
D85: =[1]Лист1!D85 -> хлеб | E85: =[1]Лист1!E85 -> Хлеб пшеничный | F85: =[1]Лист1!F85 -> 30 | G85: =[1]Лист1!G85 -> 2.8 | H85: =[1]Лист1!H85 -> 0.24 | I85: =[1]Лист1!I85 -> 14.76 | J85: =[1]Лист1!J85 -> 71 | K85: =[1]Лист1!K85 -> 376 | L85: =[1]Лист1!L85 -> 1.21
D86: =[1]Лист1!D86 -> гор.напиток | E86: =[1]Лист1!E86 -> Кофейный напиток | F86: =[1]Лист1!F86 -> 200 | G86: =[1]Лист1!G86 -> 3.17 | H86: =[1]Лист1!H86 -> 2.68 | I86: =[1]Лист1!I86 -> 15.9 | J86: =[1]Лист1!J86 -> 100.6 | K86: =[1]Лист1!K86 -> 379 | L86: =[1]Лист1!L86 -> 9.63
D87: =[1]Лист1!D87 -> фрукты | E87: =[1]Лист1!E87 -> Яблоко | F87: =[1]Лист1!F87 -> 100 | G87: =[1]Лист1!G87 -> 0.6 | H87: =[1]Лист1!H87 -> 0.6 | I87: =[1]Лист1!I87 -> 14.7 | J87: =[1]Лист1!J87 -> 70.3 | K87: =[1]Лист1!K87 -> 388 | L87: =[1]Лист1!L87 -> 10
D88: =[1]Лист1!D88 -> 0 | E88: =[1]Лист1!E88 -> 0 | F88: =[1]Лист1!F88 -> 0 | G88: =[1]Лист1!G88 -> 0 | H88: =[1]Лист1!H88 -> 0 | I88: =[1]Лист1!I88 -> 0 | J88: =[1]Лист1!J88 -> 0 | K88: =[1]Лист1!K88 -> 0 | L88: =[1]Лист1!L88 -> 0
D89: =[1]Лист1!D89 -> итого | E89: =[1]Лист1!E89 -> 0 | F89: =[1]Лист1!F89 -> 600 | G89: =[1]Лист1!G89 -> 24.32 | H89: =[1]Лист1!H89 -> 15.802 | I89: =[1]Лист1!I89 -> 113.44 | J89: =[1]Лист1!J89 -> 685.6 | K89: =[1]Лист1!K89 -> 0 | L89: =[1]Лист1!L89 -> 64.99
A90: =A82 -> 1 | B90: =B82 -> 5 | C90: Обед | D90: закуска
D91: 1 блюдо
D92: 2 блюдо
D93: гарнир
D94: напиток
D95: хлеб бел.
D96: хлеб черн.
D99: итого | F99: =SUM(F90:F98) -> 0 | G99: =SUM(G90:G98) -> 0 | H99: =SUM(H90:H98) -> 0 | I99: =SUM(I90:I98) -> 0 | J99: =SUM(J90:J98) -> 0 | L99: 0
A100: =A82 -> 1 | B100: =B82 -> 5 | C100: Итого за день: | F100: =F89+F99 -> 600 | G100: =G89+G99 -> 24.32 | H100: =H89+H99 -> 15.802 | I100: =I89+I99 -> 113.44 | J100: =J89+J99 -> 685.6 | L100: 64.99
A101: 2 | B101: 1 | C101: Завтрак | D101: =[1]Лист1!D101 -> гор.блюдо | E101: =[1]Лист1!E101 -> Пюре картофельное | F101: =[1]Лист1!F101 -> 150 | G101: =[1]Лист1!G101 -> 3.26 | H101: =[1]Лист1!H101 -> 9.62 | I101: =[1]Лист1!I101 -> 18.89 | J101: =[1]Лист1!J101 -> 181.5 | K101: =[1]Лист1!K101 -> 128 | L101: =[1]Лист1!L101 -> 11.88
D102: =[1]Лист1!D102 -> гор.блюдо | E102: =[1]Лист1!E102 -> Гуляш из говядины | F102: =[1]Лист1!F102 -> 120 | G102: =[1]Лист1!G102 -> 17.46 | H102: =[1]Лист1!H102 -> 20.14 | I102: =[1]Лист1!I102 -> 3.46 | J102: =[1]Лист1!J102 -> 265 | K102: =[1]Лист1!K102 -> 260 | L102: =[1]Лист1!L102 -> 53.4
D103: =[1]Лист1!D103 -> хлеб | E103: =[1]Лист1!E103 -> Хлеб дарницкий | F103: =[1]Лист1!F103 -> 20 | G103: =[1]Лист1!G103 -> 1.3 | H103: =[1]Лист1!H103 -> 0.2 | I103: =[1]Лист1!I103 -> 7 | J103: =[1]Лист1!J103 -> 35 | K103: =[1]Лист1!K103 -> 376 | L103: =[1]Лист1!L103 -> 2.03
D104: =[1]Лист1!D104 -> хлеб | E104: =[1]Лист1!E104 -> Хлеб пшеничный | F104: =[1]Лист1!F104 -> 30 | G104: =[1]Лист1!G104 -> 2.8 | H104: =[1]Лист1!H104 -> 0.24 | I104: =[1]Лист1!I104 -> 14.76 | J104: =[1]Лист1!J104 -> 71 | K104: =[1]Лист1!K104 -> 376 | L104: =[1]Лист1!L104 -> 1.21
D105: =[1]Лист1!D105 -> гор.напиток | E105: =[1]Лист1!E105 -> Чай с сахаром | F105: =[1]Лист1!F105 -> 200 | G105: =[1]Лист1!G105 -> 0.53 | H105: =[1]Лист1!H105 -> 0 | I105: =[1]Лист1!I105 -> 9.47 | J105: =[1]Лист1!J105 -> 40 | K105: =[1]Лист1!K105 -> 379 | L105: =[1]Лист1!L105 -> 1.53
D106: =[1]Лист1!D106 -> фрукты | E106: Яблоко | F106: =[1]Лист1!F106 -> 100 | G106: =[1]Лист1!G106 -> 0.6 | H106: =[1]Лист1!H106 -> 0.6 | I106: =[1]Лист1!I106 -> 14.7 | J106: =[1]Лист1!J106 -> 70.3 | K106: =[1]Лист1!K106 -> 388 | L106: =[1]Лист1!L106 -> 10
D107: =[1]Лист1!D107 -> 0 | E107: =[1]Лист1!E107 -> 0 | F107: =[1]Лист1!F107 -> 0 | G107: =[1]Лист1!G107 -> 0 | H107: =[1]Лист1!H107 -> 0 | I107: =[1]Лист1!I107 -> 0 | J107: =[1]Лист1!J107 -> 0 | K107: =[1]Лист1!K107 -> 0 | L107: =[1]Лист1!L107 -> 0
D108: =[1]Лист1!D108 -> итого | E108: =[1]Лист1!E108 -> 0 | F108: =[1]Лист1!F108 -> 620 | G108: =[1]Лист1!G108 -> 25.95 | H108: =[1]Лист1!H108 -> 30.8 | I108: =[1]Лист1!I108 -> 68.28 | J108: =[1]Лист1!J108 -> 662.8 | K108: =[1]Лист1!K108 -> 0 | L108: =[1]Лист1!L108 -> 80.05
A109: =A101 -> 2 | B109: =B101 -> 1 | C109: Обед | D109: закуска
D110: 1 блюдо
D111: 2 блюдо
D112: гарнир
D113: напиток
D114: хлеб бел.
D115: хлеб черн.
D118: итого | F118: =SUM(F109:F117) -> 0 | G118: =SUM(G109:G117) -> 0 | H118: 0 | I118: 0 | J118: 0 | L118: =SUM(L109:L117) -> 0
A119: =A101 -> 2 | B119: =B101 -> 1 | C119: Итого за день: | F119: =F108+F118 -> 620 | G119: =G108+G118 -> 25.95 | H119: =H108+H118 -> 30.8 | I119: =I108+I118 -> 68.28 | J119: =J108+J118 -> 662.8 | L119: 80.05
A120: 2 | B120: 2 | C120: Завтрак | D120: =[1]Лист1!D120 -> гор.блюдо | E120: =[1]Лист1!E120 -> Плов из птицы | F120: =[1]Лист1!F120 -> 200 | G120: =[1]Лист1!G120 -> 14.51 | H120: =[1]Лист1!H120 -> 14.71 | I120: =[1]Лист1!I120 -> 28.34 | J120: =[1]Лист1!J120 -> 364 | K120: =[1]Лист1!K120 -> 291 | L120: =[1]Лист1!L120 -> 48.49
D121: =[1]Лист1!D121 -> хлеб | E121: =[1]Лист1!E121 -> Хлеб дарницкий | F121: =[1]Лист1!F121 -> 20 | G121: =[1]Лист1!G121 -> 1.3 | H121: =[1]Лист1!H121 -> 0.2 | I121: =[1]Лист1!I121 -> 7 | J121: =[1]Лист1!J121 -> 35 | K121: =[1]Лист1!K121 -> 376 | L121: =[1]Лист1!L121 -> 2.03
D122: =[1]Лист1!D122 -> хлеб | E122: =[1]Лист1!E122 -> Хлеб пшеничный | F122: =[1]Лист1!F122 -> 30 | G122: =[1]Лист1!G122 -> 2.8 | H122: =[1]Лист1!H122 -> 0.24 | I122: =[1]Лист1!I122 -> 14.76 | J122: =[1]Лист1!J122 -> 71 | K122: =[1]Лист1!K122 -> 376 | L122: =[1]Лист1!L122 -> 1.21
D123: =[1]Лист1!D123 -> гор.напиток | E123: =[1]Лист1!E123 -> Какао с молоком | F123: =[1]Лист1!F123 -> 200 | G123: =[1]Лист1!G123 -> 4.08 | H123: =[1]Лист1!H123 -> 3.54 | I123: =[1]Лист1!I123 -> 17.58 | J123: =[1]Лист1!J123 -> 118.6 | K123: =[1]Лист1!K123 -> 382 | L123: =[1]Лист1!L123 -> 9.63
D124: =[1]Лист1!D124 -> закуска | E124: =[1]Лист1!E124 -> Салат из свеклы отварной | F124: =[1]Лист1!F124 -> 60 | G124: =[1]Лист1!G124 -> 0.86 | H124: =[1]Лист1!H124 -> 3.65 | I124: =[1]Лист1!I124 -> 5.02 | J124: =[1]Лист1!J124 -> 56.34 | K124: =[1]Лист1!K124 -> 52 | L124: =[1]Лист1!L124 -> 2.83
D125: =[1]Лист1!D125 -> 0 | E125: =[1]Лист1!E125 -> 0 | F125: =[1]Лист1!F125 -> 0 | G125: =[1]Лист1!G125 -> 0 | H125: =[1]Лист1!H125 -> 0 | I125: =[1]Лист1!I125 -> 0 | J125: =[1]Лист1!J125 -> 0 | K125: =[1]Лист1!K125 -> 0 | L125: =[1]Лист1!L125 -> 0
D126: =[1]Лист1!D126 -> 0 | E126: =[1]Лист1!E126 -> 0 | F126: =[1]Лист1!F126 -> 0 | G126: =[1]Лист1!G126 -> 0 | H126: =[1]Лист1!H126 -> 0 | I126: =[1]Лист1!I126 -> 0 | J126: =[1]Лист1!J126 -> 0 | K126: =[1]Лист1!K126 -> 0 | L126: =[1]Лист1!L126 -> 0
D127: =[1]Лист1!D127 -> итого | E127: =[1]Лист1!E127 -> 0 | F127: =[1]Лист1!F127 -> 510 | G127: =[1]Лист1!G127 -> 23.55 | H127: =[1]Лист1!H127 -> 22.34 | I127: =[1]Лист1!I127 -> 72.7 | J127: =[1]Лист1!J127 -> 644.94 | K127: =[1]Лист1!K127 -> 0 | L127: =[1]Лист1!L127 -> 64.19
A128: =A120 -> 2 | B128: =B120 -> 2 | C128: Обед | D128: закуска
D129: 1 блюдо
D130: 2 блюдо
D131: гарнир
D132: напиток
D133: хлеб бел.
D134: хлеб черн.
D137: итого | F137: =SUM(F128:F136) -> 0 | G137: =SUM(G128:G136) -> 0 | H137: 0 | I137: 0 | J137: 0 | L137: =SUM(L128:L136) -> 0
A138: =A120 -> 2 | B138: =B120 -> 2 | C138: Итого за день: | F138: =F127+F137 -> 510 | G138: =G127+G137 -> 23.55 | H138: =H127+H137 -> 22.34 | I138: =I127+I137 -> 72.7 | J138: =J127+J137 -> 644.94 | L138: 64.19
A139: 2 | B139: 3 | C139: Завтрак | D139: =[1]Лист1!D139 -> гор.блюдо | E139: =[1]Лист1!E139 -> Каша гречневая рассыпчатая с маслом | F139: =[1]Лист1!F139 -> 150 | G139: =[1]Лист1!G139 -> 7.11 | H139: =[1]Лист1!H139 -> 3.36 | I139: =[1]Лист1!I139 -> 35.12 | J139: =[1]Лист1!J139 -> 171.5 | K139: =[1]Лист1!K139 -> 379 | L139: =[1]Лист1!L139 -> 11.27
D140: =[1]Лист1!D140 -> гор.блюдо | E140: =[1]Лист1!E140 -> Котлеты рыбные | F140: =[1]Лист1!F140 -> 100 | G140: =[1]Лист1!G140 -> 8.062 | H140: =[1]Лист1!H140 -> 5.3 | I140: =[1]Лист1!I140 -> 9.362 | J140: =[1]Лист1!J140 -> 145 | K140: =[1]Лист1!K140 -> 234 | L140: =[1]Лист1!L140 -> 38.76
D141: =[1]Лист1!D141 -> хлеб | E141: =[1]Лист1!E141 -> Хлеб дарницкий | F141: =[1]Лист1!F141 -> 20 | G141: =[1]Лист1!G141 -> 1.3 | H141: =[1]Лист1!H141 -> 0.2 | I141: =[1]Лист1!I141 -> 7 | J141: =[1]Лист1!J141 -> 35 | K141: =[1]Лист1!K141 -> 376 | L141: =[1]Лист1!L141 -> 2.03
D142: =[1]Лист1!D142 -> хлеб | E142: =[1]Лист1!E142 -> Хлеб пшеничный | F142: =[1]Лист1!F142 -> 30 | G142: =[1]Лист1!G142 -> 2.8 | H142: =[1]Лист1!H142 -> 0.24 | I142: =[1]Лист1!I142 -> 14.76 | J142: =[1]Лист1!J142 -> 71 | K142: =[1]Лист1!K142 -> 376 | L142: =[1]Лист1!L142 -> 1.21
D143: =[1]Лист1!D143 -> гор.напиток | E143: =[1]Лист1!E143 -> Чай с лимоном | F143: =[1]Лист1!F143 -> 200 | G143: =[1]Лист1!G143 -> 0.13 | H143: =[1]Лист1!H143 -> 0.02 | I143: =[1]Лист1!I143 -> 15.2 | J143: =[1]Лист1!J143 -> 62 | K143: =[1]Лист1!K143 -> 377 | L143: =[1]Лист1!L143 -> 2.72
D144: =[1]Лист1!D144 -> фрукты | E144: Яблоко | F144: =[1]Лист1!F144 -> 100 | G144: =[1]Лист1!G144 -> 0.6 | H144: =[1]Лист1!H144 -> 0.6 | I144: =[1]Лист1!I144 -> 14.7 | J144: =[1]Лист1!J144 -> 70.3 | K144: =[1]Лист1!K144 -> 388 | L144: =[1]Лист1!L144 -> 10
D145: =[1]Лист1!D145 -> 0 | E145: =[1]Лист1!E145 -> 0 | F145: =[1]Лист1!F145 -> 0 | G145: =[1]Лист1!G145 -> 0 | H145: =[1]Лист1!H145 -> 0 | I145: =[1]Лист1!I145 -> 0 | J145: =[1]Лист1!J145 -> 0 | K145: =[1]Лист1!K145 -> 0 | L145: =[1]Лист1!L145 -> 0
D146: =[1]Лист1!D146 -> итого | E146: =[1]Лист1!E146 -> 0 | F146: =[1]Лист1!F146 -> 600 | G146: =[1]Лист1!G146 -> 20.002 | H146: =[1]Лист1!H146 -> 9.72 | I146: =[1]Лист1!I146 -> 96.142 | J146: =[1]Лист1!J146 -> 554.8 | K146: =[1]Лист1!K146 -> 0 | L146: =[1]Лист1!L146 -> 65.99
A147: =A139 -> 2 | B147: =B139 -> 3 | C147: Обед | D147: закуска
D148: 1 блюдо
D149: 2 блюдо
D150: гарнир
D151: напиток
D152: хлеб бел.
D153: хлеб черн.
D156: итого | F156: =SUM(F147:F155) -> 0 | G156: =SUM(G147:G155) -> 0 | H156: 0 | I156: 0 | J156: 0 | L156: =SUM(L147:L155) -> 0
A157: =A139 -> 2 | B157: =B139 -> 3 | C157: Итого за день: | F157: =F146+F156 -> 600 | G157: =G146+G156 -> 20.002 | H157: =H146+H156 -> 9.72 | I157: =I146+I156 -> 96.142 | J157: =J146+J156 -> 554.8 | L157: 65.99
A158: 2 | B158: 4 | C158: Завтрак | D158: =[1]Лист1!D158 -> гор.блюдо | E158: =[1]Лист1!E158 -> Фрикадельки в соусе | F158: =[1]Лист1!F158 -> 120 | G158: =[1]Лист1!G158 -> 10.6 | H158: =[1]Лист1!H158 -> 9.85 | I158: =[1]Лист1!I158 -> 4.065 | J158: =[1]Лист1!J158 -> 223 | K158: =[1]Лист1!K158 -> 105 | L158: =[1]Лист1!L158 -> 34.23
D159: =[1]Лист1!D159 -> гор.блюдо | E159: =[1]Лист1!E159 -> Макаронные изделия отварные | F159: =[1]Лист1!F159 -> 155 | G159: =[1]Лист1!G159 -> 5.46 | H159: =[1]Лист1!H159 -> 5.79 | I159: =[1]Лист1!I159 -> 30.45 | J159: =[1]Лист1!J159 -> 195.7 | K159: =[1]Лист1!K159 -> 202 | L159: =[1]Лист1!L159 -> 15.8
D160: =[1]Лист1!D160 -> хлеб | E160: =[1]Лист1!E160 -> Хлеб дарницкий | F160: =[1]Лист1!F160 -> 20 | G160: =[1]Лист1!G160 -> 1.3 | H160: =[1]Лист1!H160 -> 0.2 | I160: =[1]Лист1!I160 -> 7 | J160: =[1]Лист1!J160 -> 35 | K160: =[1]Лист1!K160 -> 376 | L160: =[1]Лист1!L160 -> 2.03
D161: =[1]Лист1!D161 -> хлеб | E161: =[1]Лист1!E161 -> Хлеб пшеничный | F161: =[1]Лист1!F161 -> 30 | G161: =[1]Лист1!G161 -> 2.8 | H161: =[1]Лист1!H161 -> 0.24 | I161: =[1]Лист1!I161 -> 14.76 | J161: =[1]Лист1!J161 -> 71 | K161: =[1]Лист1!K161 -> 376 | L161: =[1]Лист1!L161 -> 1.21
D162: =[1]Лист1!D162 -> гор.напиток | E162: =[1]Лист1!E162 -> Кофейный напиток | F162: =[1]Лист1!F162 -> 200 | G162: =[1]Лист1!G162 -> 3.17 | H162: =[1]Лист1!H162 -> 2.68 | I162: =[1]Лист1!I162 -> 15.9 | J162: =[1]Лист1!J162 -> 100.6 | K162: =[1]Лист1!K162 -> 379 | L162: =[1]Лист1!L162 -> 2.72
D163: =[1]Лист1!D163 -> фрукты | E163: Яблоко | F163: =[1]Лист1!F163 -> 100 | G163: =[1]Лист1!G163 -> 0.6 | H163: =[1]Лист1!H163 -> 0.6 | I163: =[1]Лист1!I163 -> 14.7 | J163: =[1]Лист1!J163 -> 70.3 | K163: =[1]Лист1!K163 -> 388 | L163: =[1]Лист1!L163 -> 10
D164: =[1]Лист1!D164 -> 0 | E164: =[1]Лист1!E164 -> 0 | F164: =[1]Лист1!F164 -> 0 | G164: =[1]Лист1!G164 -> 0 | H164: =[1]Лист1!H164 -> 0 | I164: =[1]Лист1!I164 -> 0 | J164: =[1]Лист1!J164 -> 0 | K164: =[1]Лист1!K164 -> 0 | L164: =[1]Лист1!L164 -> 0
D165: =[1]Лист1!D165 -> итого | E165: =[1]Лист1!E165 -> 0 | F165: =[1]Лист1!F165 -> 625 | G165: =[1]Лист1!G165 -> 23.93 | H165: =[1]Лист1!H165 -> 19.36 | I165: =[1]Лист1!I165 -> 86.875 | J165: =[1]Лист1!J165 -> 695.6 | K165: =[1]Лист1!K165 -> 0 | L165: =[1]Лист1!L165 -> 65.99
A166: =A158 -> 2 | B166: =B158 -> 4 | C166: Обед | D166: закуска
D167: 1 блюдо
D168: 2 блюдо
D169: гарнир
D170: напиток
D171: хлеб бел.
D172: хлеб черн.
D175: итого | F175: =SUM(F166:F174) -> 0 | G175: =SUM(G166:G174) -> 0 | H175: 0 | I175: 0 | J175: 0 | L175: =SUM(L166:L174) -> 0
A176: =A158 -> 2 | B176: =B158 -> 4 | C176: Итого за день: | F176: =F165+F175 -> 625 | G176: =G165+G175 -> 23.93 | H176: =H165+H175 -> 19.36 | I176: =I165+I175 -> 86.875 | J176: =J165+J175 -> 695.6 | L176: 65.99
A177: 2 | B177: 5 | C177: Завтрак | D177: =[1]Лист1!D177 -> гор.блюдо | E177: =[1]Лист1!E177 -> Рис отварной | F177: =[1]Лист1!F177 -> 150 | G177: =[1]Лист1!G177 -> 3.65 | H177: =[1]Лист1!H177 -> 5.37 | I177: =[1]Лист1!I177 -> 36.68 | J177: =[1]Лист1!J177 -> 209.7 | K177: =[1]Лист1!K177 -> 304 | L177: =[1]Лист1!L177 -> 8.96
D178: =[1]Лист1!D178 -> гор.блюдо | E178: =[1]Лист1!E178 -> Котлеты из птицы | F178: =[1]Лист1!F178 -> 100 | G178: =[1]Лист1!G178 -> 12.8 | H178: =[1]Лист1!H178 -> 6.712 | I178: =[1]Лист1!I178 -> 24.4 | J178: =[1]Лист1!J178 -> 199 | K178: =[1]Лист1!K178 -> 295 | L178: =[1]Лист1!L178 -> 37.16
D179: =[1]Лист1!D179 -> хлеб | E179: =[1]Лист1!E179 -> Хлеб дарницкий | F179: =[1]Лист1!F179 -> 20 | G179: =[1]Лист1!G179 -> 1.3 | H179: =[1]Лист1!H179 -> 0.2 | I179: =[1]Лист1!I179 -> 7 | J179: =[1]Лист1!J179 -> 35 | K179: =[1]Лист1!K179 -> 376 | L179: =[1]Лист1!L179 -> 2.03
D180: =[1]Лист1!D180 -> хлеб | E180: =[1]Лист1!E180 -> Хлеб пшеничный | F180: =[1]Лист1!F180 -> 30 | G180: =[1]Лист1!G180 -> 2.8 | H180: =[1]Лист1!H180 -> 0.24 | I180: =[1]Лист1!I180 -> 14.76 | J180: =[1]Лист1!J180 -> 71 | K180: =[1]Лист1!K180 -> 376 | L180: =[1]Лист1!L180 -> 1.21
D181: =[1]Лист1!D181 -> гор.напиток | E181: =[1]Лист1!E181 -> Какао с молоком | F181: =[1]Лист1!F181 -> 200 | G181: =[1]Лист1!G181 -> 4.08 | H181: =[1]Лист1!H181 -> 3.54 | I181: =[1]Лист1!I181 -> 17.58 | J181: =[1]Лист1!J181 -> 118.6 | K181: =[1]Лист1!K181 -> 382 | L181: =[1]Лист1!L181 -> 9.63
D182: =[1]Лист1!D182 -> фрукты | E182: Яблоко | F182: =[1]Лист1!F182 -> 100 | G182: =[1]Лист1!G182 -> 0.6 | H182: =[1]Лист1!H182 -> 0.6 | I182: =[1]Лист1!I182 -> 14.7 | J182: =[1]Лист1!J182 -> 70.3 | K182: =[1]Лист1!K182 -> 388 | L182: =[1]Лист1!L182 -> 10
D183: =[1]Лист1!D183 -> 0 | E183: =[1]Лист1!E183 -> 0 | F183: =[1]Лист1!F183 -> 0 | G183: =[1]Лист1!G183 -> 0 | H183: =[1]Лист1!H183 -> 0 | I183: =[1]Лист1!I183 -> 0 | J183: =[1]Лист1!J183 -> 0 | K183: =[1]Лист1!K183 -> 0 | L183: =[1]Лист1!L183 -> 0
D184: =[1]Лист1!D184 -> итого | E184: =[1]Лист1!E184 -> 0 | F184: =[1]Лист1!F184 -> 600 | G184: =[1]Лист1!G184 -> 25.23 | H184: =[1]Лист1!H184 -> 16.662 | I184: =[1]Лист1!I184 -> 115.12 | J184: =[1]Лист1!J184 -> 703.6 | K184: =[1]Лист1!K184 -> 0 | L184: =[1]Лист1!L184 -> 68.99
A185: =A177 -> 2 | B185: =B177 -> 5 | C185: Обед | D185: закуска
D186: 1 блюдо
D187: 2 блюдо
D188: гарнир
D189: напиток
D190: хлеб бел.
D191: хлеб черн.
D194: итого | F194: =SUM(F185:F193) -> 0 | G194: =SUM(G185:G193) -> 0 | H194: 0 | I194: 0 | J194: 0 | L194: =SUM(L185:L193) -> 0
A195: =A177 -> 2 | B195: =B177 -> 5 | C195: Итого за день: | F195: =F184+F194 -> 600 | G195: =G184+G194 -> 25.23 | H195: =H184+H194 -> 16.662 | I195: =I184+I194 -> 115.12 | J195: =J184+J194 -> 703.6 | L195: 68.99
C196: Среднее значение за период: | F196: =(F24+F43+F62+F81+F100+F119+F138+F157+F176+F195)/(IF(F24=0,0,1)+IF(F43=0,0,1)+IF(F62=0,0,1)+IF(F81=0,0,1)+IF(F100=0,0,1)+IF(F119=0,0,1)+IF(F138=0,0,1)+IF(F157=0,0,1)+IF(F176=0,0,1)+IF(F195=0,0,1)) -> 572.5 | G196: =(G24+G43+G62+G81+G100+G119+G138+G157+G176+G195)/(IF(G24=0,0,1)+IF(G43=0,0,1)+IF(G62=0,0,1)+IF(G81=0,0,1)+IF(G100=0,0,1)+IF(G119=0,0,1)+IF(G138=0,0,1)+IF(G157=0,0,1)+IF(G176=0,0,1)+IF(G195=0,0,1)) -> 22.6704 | H196: 18.5154 | I196: 84.5798 | J196: 621.226 | L196: =(L24+L43+L62+L81+L100+L119+L138+L157+L176+L195)/(IF(L24=0,0,1)+IF(L43=0,0,1)+IF(L62=0,0,1)+IF(L81=0,0,1)+IF(L100=0,0,1)+IF(L119=0,0,1)+IF(L138=0,0,1)+IF(L157=0,0,1)+IF(L176=0,0,1)+IF(L195=0,0,1)) -> 67.692
